bitfinex/quotes_BTCUSD_20251114
["timestamp","ask_amount","ask_price","bid_price","bid_amount"]
[1763129238648,0.03281,95786.0,95746.0,0.323]
[1763129238869,0.10479654,95751.0,95743.0,0.208891]
[1763129239082,0.10479654,95751.0,95742.0,0.323]
[1763129239317,0.001,95748.0,95739.0,0.01645]
[1763129239519,0.10479654,95747.0,95741.0,0.20889691]
[1763129239746,0.10479654,95747.0,95739.0,0.01645]
[1763129239952,0.10479654,95747.0,95730.0,0.41551]
[1763129240177,0.10479654,95747.0,95723.0,0.05542346]
[1763129240178,0.10479654,95732.0,95731.0,0.196316]
[1763129240392,0.09054,95757.0,95721.0,0.323]
[1763129240605,0.10479654,95766.0,95746.0,0.01645]
[1763129240848,0.10479654,95766.0,95747.0,0.380862]
[1763129241053,0.10479654,95749.0,95747.0,0.111668]
[1763129241262,0.10479654,95749.0,95746.0,0.01645]
[1763129241477,0.10479654,95749.0,95740.0,0.323]
[1763129241697,0.10479654,95749.0,95738.0,0.01645]
[1763129242356,0.10479654,95749.0,95739.0,0.20890128]
[1763129242577,0.10479654,95749.0,95738.0,0.01645]
[1763129242787,0.10479654,95749.0,95744.0,0.20888984]
[1763129242997,0.10479654,95749.0,95742.0,0.20889362]
[1763129243218,0.10479654,95749.0,95744.0,0.20888974]
[1763129243859,0.10479654,95749.0,95742.0,0.20889464]
[1763129244302,0.10479654,95766.0,95740.0,0.2088991]
[1763129244503,0.10479654,95747.0,95744.0,0.20888955]
[1763129244712,0.10479654,95747.0,95741.0,0.323]
[1763129244918,0.10479654,95747.0,95743.0,0.2088912]
[1763129245129,0.10479654,95766.0,95746.0,0.140246]
[1763129245343,0.10479654,95751.0,95750.0,0.338513]
[1763129245551,0.10479654,95751.0,95748.0,0.20887943]
[1763129245746,0.10479654,95751.0,95749.0,0.20887737]
[1763129246192,0.10479654,95766.0,95743.0,1.032175]
[1763129246405,0.10479654,95751.0,95745.0,0.684759]
[1763129246646,0.10479654,95751.0,95750.0,0.72561928]
[1763129246857,0.10479654,95751.0,95742.0,0.127492]
[1763129247075,0.10493236,95766.0,95758.0,0.20885888]
[1763129247338,0.00013582,95766.0,95759.0,0.09251]
[1763129247547,0.00013582,95766.0,95765.0,0.931617]
[1763129247770,0.00013582,95766.0,95765.0,0.868407]
[1763129248203,0.00013582,95766.0,95765.0,0.91182574]
[1763129248427,0.00013582,95766.0,95765.0,0.94625224]
[1763129248635,0.00013582,95766.0,95765.0,0.52975924]
[1763129248841,0.00013582,95766.0,95765.0,0.50517124]
[1763129249067,0.00013582,95766.0,95759.0,0.20885719]
[1763129249068,0.00013582,95766.0,95762.0,0.04534]
[1763129249310,0.00013582,95766.0,95765.0,0.001]
[1763129249994,0.00013582,95766.0,95765.0,0.002]
[1763129250231,0.00013582,95766.0,95765.0,0.001]
[1763129250485,0.0095,95750.0,95737.0,0.5]
[1763129250687,0.01065359,95766.0,95765.0,0.25756456]
[1763129250688,0.00013582,95766.0,95765.0,0.25756456]
[1763129250894,0.00013582,95766.0,95765.0,0.25856456]
[1763129251098,0.00013582,95766.0,95765.0,0.37476356]
[1763129251341,0.00013582,95766.0,95765.0,0.37376356]
[1763129251548,0.00013582,95766.0,95765.0,0.30221256]
[1763129252184,0.00013582,95766.0,95765.0,0.62521256]
[1763129252390,0.00013582,95766.0,95765.0,0.6686313]
[1763129252595,0.00024537,95768.0,95767.0,0.57525894]
[1763129252803,0.00024537,95768.0,95767.0,2.57525894]
[1763129253036,0.38284825,95830.0,95773.0,0.36641874]
[1763129253037,0.09054,95829.0,95773.0,0.36641874]
[1763129253233,0.10493239,95806.0,95799.0,0.20876904]
[1763129253445,0.10493239,95806.0,95796.0,0.58150201]
[1763129253446,0.10341573,95806.0,95797.0,0.20877308]
[1763129253651,0.10341573,95806.0,95800.0,0.20876784]
[1763129253899,0.10341573,95806.0,95792.0,0.2087855]
[1763129254108,0.10341573,95806.0,95790.0,0.37272695]
[1763129254342,0.10479654,95791.0,95790.0,0.37272695]
[1763129254554,0.10341573,95806.0,95789.0,0.04106]
[1763129254769,0.10479654,95791.0,95790.0,0.20879006]
[1763129255202,0.10341573,95806.0,95789.0,0.04106]
[1763129255203,0.10341573,95806.0,95789.0,0.54106]
[1763129255419,0.10341573,95806.0,95797.0,0.323]
[1763129255643,0.10341573,95806.0,95800.0,0.20876826]
[1763129255865,0.10341573,95806.0,95805.0,1.16855]
[1763129255866,0.00013585,95806.0,95805.0,1.16855]
[1763129256094,0.00013585,95806.0,95805.0,0.69611437]
[1763129256361,0.00013585,95806.0,95805.0,0.77628341]
[1763129256582,0.00113585,95806.0,95805.0,0.77628341]
[1763129256789,0.00013585,95806.0,95805.0,0.77628341]
[1763129256990,0.00013585,95806.0,95805.0,0.86807341]
[1763129257359,0.00013585,95806.0,95805.0,0.77628341]
[1763129257751,0.00013585,95806.0,95805.0,0.69611437]
[1763129258233,0.00013585,95806.0,95805.0,0.69711437]
[1763129258686,0.00013585,95806.0,95805.0,0.62011437]
[1763129258899,0.00013585,95806.0,95805.0,0.10142]
[1763129259098,0.00013585,95806.0,95805.0,0.20975737]
[1763129259300,0.00013585,95806.0,95805.0,0.41639437]
[1763129259604,0.00013585,95806.0,95805.0,0.00204]
[1763129259807,0.00117138,95806.0,95805.0,0.00204]
[1763129260011,0.00117138,95806.0,95805.0,0.00108]
[1763129260367,0.00117138,95806.0,95805.0,0.00112]
[1763129260770,0.00117138,95806.0,95805.0,0.00116]
[1763129261171,0.00117138,95806.0,95805.0,0.00216]
[1763129261575,0.00117138,95806.0,95805.0,0.00116]
[1763129261778,0.00117138,95806.0,95805.0,0.00016]
[1763129261994,0.00217138,95806.0,95805.0,0.00016]
[1763129262583,0.00317138,95806.0,95805.0,0.00016]
[1763129262853,0.00217138,95806.0,95805.0,0.00016]
[1763129263267,0.00117138,95806.0,95805.0,0.00016]
[1763129263790,0.00217138,95806.0,95805.0,0.00016]
[1763129264001,0.00217138,95806.0,95805.0,0.32316]
[1763129264210,0.00117138,95806.0,95805.0,0.568124]
[1763129264426,0.00117138,95806.0,95805.0,0.476334]
[1763129264683,0.0002,95850.0,95831.0,0.20870073]
[1763129264872,0.00054265,95832.0,95831.0,0.20870073]
[1763129265082,0.00054265,95832.0,95829.0,0.01645]
[1763129265295,0.00054265,95832.0,95831.0,0.06424]
[1763129265903,0.00054265,95832.0,95831.0,0.238425]
[1763129266221,0.00054265,95832.0,95831.0,0.165425]
[1763129266424,0.00054265,95832.0,95830.0,0.5]
[1763129266655,0.00054265,95832.0,95829.0,0.09303018]
[1763129266656,0.10479654,95831.0,95829.0,0.09303018]
[1763129266860,0.10479654,95831.0,95829.0,0.01645]
[1763129267064,0.10479654,95831.0,95821.0,0.01645]
[1763129267065,0.01053392,95830.0,95821.0,0.01645]
[1763129267277,0.10479654,95829.0,95821.0,0.01645]
[1763129267485,0.10479654,95829.0,95827.0,0.26703]
[1763129267695,0.10479654,95829.0,95828.0,0.259337]
[1763129267901,0.10479654,95829.0,95822.0,0.09135]
[1763129268104,0.00054265,95832.0,95822.0,0.09135]
[1763129268310,0.10479654,95831.0,95828.0,0.2087055]
[1763129268509,0.00054265,95832.0,95831.0,0.20870073]
[1763129269351,0.00054265,95832.0,95831.0,0.61413673]
[1763129269763,0.00054265,95832.0,95831.0,0.51513673]
[1763129270199,0.00125083,95832.0,95831.0,0.33692973]
[1763129270406,0.00125083,95832.0,95831.0,0.35776373]
[1763129271090,0.00225083,95832.0,95831.0,0.35776373]
[1763129271329,0.00225083,95832.0,95831.0,0.34250073]
[1763129271509,0.00225083,95832.0,95831.0,0.31911173]
[1763129271916,0.00225083,95832.0,95831.0,0.110411]
[1763129272135,0.00225083,95832.0,95825.0,0.0765888]
[1763129272320,0.10479654,95828.0,95825.0,0.0765888]
[1763129272525,0.00154265,95832.0,95822.0,0.156063]
[1763129272755,0.10479654,95830.0,95829.0,0.20870346]
[1763129273596,0.10479654,95830.0,95821.0,0.01645]
[1763129273811,0.10479654,95830.0,95821.0,0.51645]
[1763129274237,0.10479654,95830.0,95825.0,0.2087138]
[1763129274452,0.10479654,95830.0,95821.0,0.01645]
[1763129274661,0.11429654,95830.0,95811.0,0.01645]
[1763129274835,0.10479654,95815.0,95812.0,0.121665]
[1763129275045,0.10479654,95815.0,95814.0,0.20873776]
[1763129275864,0.10479654,95815.0,95811.0,0.01645]
[1763129276242,0.10479654,95814.0,95811.0,0.01645]
[1763129277055,0.00154265,95832.0,95811.0,0.01645]
[1763129277255,0.10479654,95831.0,95830.0,0.20870169]
[1763129277430,0.10479654,95831.0,95829.0,0.20870469]
[1763129278266,0.10479654,95831.0,95815.0,0.09179]
[1763129278267,0.10479654,95831.0,95815.0,0.03661083]
[1763129278624,0.10506896,95816.0,95811.0,0.01649]
[1763129278825,0.10479654,95816.0,95811.0,0.01649]
[1763129279029,0.10479654,95816.0,95811.0,4e-05]
[1763129279218,0.10479654,95813.0,95812.0,0.01645]
[1763129279418,0.10479654,95813.0,95811.0,4e-05]
[1763129280241,0.10479654,95813.0,95812.0,4e-05]
[1763129280598,0.10479654,95813.0,95801.0,0.441854]
[1763129280793,0.10479654,95813.0,95812.0,0.01645]
[1763129281275,0.10479654,95813.0,95812.0,2.01645]
[1763129281473,0.0095,95830.0,95813.0,2.0]
[1763129281677,0.10479654,95831.0,95820.0,0.37272695]
[1763129281935,0.10479654,95831.0,95821.0,0.22959421]
[1763129282280,0.10479654,95830.0,95829.0,0.20870467]
[1763129282537,0.00154265,95832.0,95831.0,0.20870073]
[1763129283002,0.00154265,95832.0,95831.0,0.57486373]
[1763129283419,0.00154265,95832.0,95831.0,0.65299971]
[1763129284685,0.00154265,95832.0,95831.0,0.65303971]
[1763129284936,0.00154265,95832.0,95831.0,0.70821769]
[1763129285135,0.0002,95850.0,95849.0,1.24278554]
[1763129285385,0.0002,95870.0,95869.0,0.208618]
[1763129285627,0.00033579,95870.0,95862.0,0.20863169]
[1763129285840,0.00033579,95870.0,95860.0,0.323]
[1763129285841,0.00033579,95870.0,95869.0,0.208618]
[1763129286048,0.00033579,95870.0,95869.0,0.269858]
[1763129286647,0.00033579,95870.0,95869.0,0.270858]
[1763129287112,0.00033579,95870.0,95869.0,0.269858]
[1763129287751,0.00033579,95870.0,95867.0,0.20862224]
[1763129287752,0.00033579,95870.0,95868.0,0.20861892]
[1763129288181,0.00033579,95870.0,95866.0,0.20862377]
[1763129288391,0.00033579,95870.0,95865.0,0.37954295]
[1763129288592,0.00033579,95870.0,95866.0,0.149293]
[1763129288797,0.10479654,95869.0,95866.0,0.20862316]
[1763129289028,0.00033579,95870.0,95867.0,0.33160944]
[1763129289237,0.00033579,95870.0,95869.0,0.531618]
[1763129290314,0.00033579,95870.0,95864.0,0.07971904]
[1763129290745,0.00033579,95870.0,95868.0,0.2086185]
[1763129290965,0.00033579,95870.0,95869.0,0.03215]
[1763129291186,0.00033579,95870.0,95869.0,0.741984]
[1763129291407,0.10479654,95897.0,95870.0,0.20861583]
[1763129291652,0.10479654,95897.0,95895.0,0.2085593]
[1763129291867,0.01635477,95939.0,95888.0,0.323]
[1763129292075,0.10479654,95902.0,95900.0,0.37272695]
[1763129292306,0.10479654,95902.0,95888.0,0.5315752]
[1763129292488,0.10479654,95902.0,95890.0,0.37272695]
[1763129292972,0.002,95897.0,95890.0,0.37272695]
[1763129293391,0.00160584,95891.0,95884.0,0.323]
[1763129293605,0.10479654,95887.0,95883.0,0.40244679]
[1763129293816,0.10479654,95887.0,95883.0,0.323]
[1763129294458,0.10479654,95887.0,95882.0,0.37416763]
[1763129294668,0.10479654,95886.0,95885.0,0.20858153]
[1763129294887,0.10479654,95886.0,95876.0,0.323]
[1763129294888,0.10493223,95886.0,95865.0,0.03663748]
[1763129295096,0.10493223,95886.0,95870.0,0.37272695]
[1763129295305,0.10479654,95885.0,95876.0,0.37272695]
[1763129295763,0.10479654,95885.0,95866.0,0.323]
[1763129295995,0.10479654,95867.0,95858.0,0.03588]
[1763129296658,0.10479654,95867.0,95845.0,0.20866955]
[1763129296660,0.04902,95859.0,95840.0,0.37272695]
[1763129296914,0.10479654,95842.0,95840.0,0.37272695]
[1763129297145,0.10479654,95847.0,95843.0,0.20867346]
[1763129297382,0.10479654,95847.0,95831.0,4e-05]
[1763129297619,0.10479654,95832.0,95831.0,4e-05]
[1763129297846,0.10479654,95847.0,95831.0,4e-05]
[1763129297847,0.10479654,95847.0,95835.0,0.20869118]
[1763129298071,0.10479654,95847.0,95837.0,0.37272695]
[1763129298282,0.10479654,95867.0,95846.0,0.03215]
[1763129298283,0.0095,95860.0,95846.0,0.03215]
[1763129298506,0.10479654,95867.0,95846.0,0.03215]
[1763129298507,0.10479654,95867.0,95849.0,0.37272695]
[1763129298733,0.09333,95894.0,95876.0,0.2086023]
[1763129298969,0.2540969,95925.0,95882.0,0.20858833]
[1763129298970,0.09333,95906.0,95882.0,0.20858833]
[1763129299183,0.09333,95906.0,95884.0,0.20858537]
[1763129299412,0.09333,95906.0,95880.0,0.2085931]
[1763129299624,0.09333,95906.0,95883.0,0.20858663]
[1763129299835,0.0456,95925.0,95877.0,0.20859989]
[1763129300055,0.0456,95925.0,95873.0,0.323]
[1763129300056,0.09333,95915.0,95873.0,0.323]
[1763129300266,0.10479654,95887.0,95875.0,0.37272695]
[1763129300473,0.10479654,95887.0,95876.0,0.20860141]
[1763129300673,0.10479654,95887.0,95876.0,0.173227]
[1763129300947,0.10479654,95887.0,95875.0,0.37272695]
[1763129301164,0.01047965,95886.0,95870.0,0.37272695]
[1763129301381,0.01047965,95886.0,95860.0,0.37272695]
[1763129301382,0.10479654,95871.0,95860.0,0.37272695]
[1763129301590,0.0095,95870.0,95860.0,0.37272695]
[1763129302037,0.0095,95870.0,95836.0,0.26364474]
[1763129302038,0.0095,95870.0,95850.0,0.37272695]
[1763129302260,0.10479654,95851.0,95841.0,0.128176]
[1763129302478,0.0095,95850.0,95831.0,0.50004]
[1763129302695,0.0095,95850.0,95841.0,0.00013579]
[1763129303123,0.10479654,95851.0,95841.0,0.00013579]
[1763129303332,0.0095,95870.0,95848.0,0.323]
[1763129303548,0.001,95850.0,95849.0,0.01913399]
[1763129303764,0.001,95850.0,95849.0,0.53166154]
[1763129303996,0.002,95850.0,95849.0,0.323]
[1763129304208,0.002,95850.0,95841.0,0.00013579]
[1763129304438,0.10479654,95843.0,95841.0,0.00013579]
[1763129304862,0.09333,95869.0,95841.0,0.00013579]
[1763129305072,0.10479654,95851.0,95841.0,0.32313579]
[1763129305278,0.10479654,95851.0,95842.0,0.03215]
[1763129305939,0.04902,95876.0,95842.0,0.03215]
[1763129305940,0.0095,95870.0,95842.0,0.7408256]
[1763129306230,0.10479654,95850.0,95842.0,0.03215]
[1763129306510,0.10479654,95887.0,95843.0,0.05301746]
[1763129306791,0.10479654,95870.0,95860.0,0.38315882]
[1763129307249,0.10479654,95870.0,95841.0,0.03677327]
[1763129307250,0.11527619,95886.0,95851.0,1.102857]
[1763129307253,0.10479654,95869.0,95863.0,0.20863042]
[1763129307504,0.10479654,95869.0,95851.0,0.323]
[1763129307752,0.10479654,95869.0,95853.0,0.323]
[1763129308029,0.10479654,95868.0,95864.0,0.20862745]
[1763129308238,0.10479654,95868.0,95866.0,0.2086224]
[1763129308473,0.10479654,95868.0,95859.0,0.284266]
[1763129308681,0.10479654,95868.0,95856.0,0.20864572]
[1763129308905,0.11537619,95868.0,95850.0,0.03663748]
[1763129309110,0.10479654,95853.0,95844.0,0.03663748]
[1763129309317,0.10479654,95853.0,95842.0,0.03663748]
[1763129309523,0.10479654,95853.0,95844.0,0.51163748]
[1763129309741,0.10479654,95853.0,95843.0,0.323]
[1763129309742,0.10479654,95853.0,95841.0,0.00013579]
[1763129310205,0.0095,95850.0,95841.0,0.00013579]
[1763129310428,0.00027232,95842.0,95841.0,0.00013579]
[1763129312370,0.00127232,95842.0,95841.0,0.00013579]
[1763129312780,0.00027232,95842.0,95841.0,0.00013579]
[1763129313192,0.00127232,95842.0,95841.0,0.00013579]
[1763129313628,0.00227232,95842.0,95841.0,0.00013579]
[1763129313860,0.00127232,95842.0,95841.0,0.00013579]
[1763129314279,0.00227232,95842.0,95841.0,0.00013579]
[1763129315775,0.06326232,95842.0,95841.0,0.00013579]
[1763129316028,0.11782929,95842.0,95831.0,4e-05]
[1763129316238,0.20920528,95832.0,95831.0,4e-05]
[1763129316880,0.20920528,95832.0,95795.0,0.5]
[1763129317101,0.20920528,95832.0,95794.0,0.00147421]
[1763129317102,0.04377,95795.0,95794.0,0.00147421]
[1763129317343,0.10476,95795.0,95794.0,0.00147421]
[1763129317757,0.04377,95795.0,95794.0,0.00147421]
[1763129317974,0.10479654,95811.0,95794.0,0.00147421]
[1763129317975,0.10479654,95811.0,95795.0,0.20877916]
[1763129318181,0.10479654,95811.0,95798.0,0.20877239]
[1763129318390,0.10479654,95811.0,95795.0,0.00045265]
[1763129318593,0.10479654,95796.0,95795.0,0.00045265]
[1763129318798,0.0095,95810.0,95795.0,0.00045265]
[1763129319024,0.10479654,95811.0,95795.0,0.00045265]
[1763129319025,0.10479654,95796.0,95795.0,0.20923181]
[1763129319238,0.10479654,95796.0,95795.0,0.00045265]
[1763129320487,0.16578654,95796.0,95795.0,0.00045265]
[1763129321098,0.10479654,95796.0,95795.0,0.00045265]
[1763129321910,0.17626619,95796.0,95795.0,0.02885965]
[1763129322062,0.16578654,95796.0,95795.0,0.02885965]
[1763129323066,0.16578654,95796.0,95760.0,0.0004]
[1763129323067,0.10479654,95761.0,95760.0,0.0004]
[1763129323418,0.10479654,95761.0,95760.0,0.50053585]
[1763129323646,0.10479654,95761.0,95760.0,0.10706177]
[1763129323853,0.10479654,95761.0,95760.0,0.00146277]
[1763129324015,0.10479654,95761.0,95758.0,0.63232103]
[1763129324220,0.04822,95774.0,95760.0,0.001]
[1763129324221,0.0095,95770.0,95760.0,0.001]
[1763129324435,0.10479654,95761.0,95760.0,0.001]
[1763129325414,0.10479654,95761.0,95750.0,0.62388565]
[1763129325625,0.10479654,95761.0,95759.0,0.20885652]
[1763129325818,0.10479654,95761.0,95760.0,0.001]
[1763129326259,0.04822,95774.0,95760.0,0.001]
[1763129326467,0.10479654,95776.0,95768.0,0.20883604]
[1763129326686,0.10479654,95776.0,95764.0,0.20884539]
[1763129326895,0.10479654,95776.0,95771.0,0.20883089]
[1763129327099,0.10479654,95776.0,95761.0,0.15394]
[1763129327427,0.10479654,95776.0,95754.0,0.20886742]
[1763129327628,0.10479654,95755.0,95753.0,0.20886939]
[1763129327845,0.10479654,95755.0,95750.0,0.00013582]
[1763129328044,0.10479654,95755.0,95744.0,0.0157]
[1763129328243,0.10479654,95755.0,95748.0,0.20887976]
[1763129328445,0.10479654,95755.0,95744.0,0.0157]
[1763129328923,0.10479654,95755.0,95752.0,0.2088712]
[1763129329128,0.1047412,95755.0,95753.0,0.20886991]
[1763129329666,0.1047412,95755.0,95754.0,0.293907]
[1763129330055,0.1047412,95755.0,95751.0,0.20887071]
[1763129330056,0.1047412,95755.0,95751.0,0.20911614]
[1763129330209,0.1047412,95755.0,95752.0,0.31794092]
[1763129330428,0.1047412,95755.0,95753.0,0.20886889]
[1763129330792,0.10479654,95776.0,95752.0,1.094951]
[1763129330987,0.10479654,95757.0,95756.0,0.20886419]
[1763129331275,0.10479654,95757.0,95756.0,0.15486419]
[1763129331452,0.10479654,95757.0,95755.0,0.20886628]
[1763129331453,0.10479654,95757.0,95751.0,0.00024543]
[1763129331655,0.10479654,95757.0,95756.0,0.20886419]
[1763129332155,0.10479654,95757.0,95753.0,0.20887074]
[1763129332427,0.10479654,95757.0,95751.0,0.00024543]
[1763129332428,0.10479654,95757.0,95751.0,0.20911968]
[1763129332668,0.10479654,95757.0,95751.0,0.00024543]
[1763129332881,0.10479654,95757.0,95755.0,0.20886553]
[1763129334120,0.10479654,95757.0,95751.0,0.00024543]
[1763129334321,0.10479654,95757.0,95756.0,0.20886419]
[1763129334560,0.10479654,95757.0,95754.0,0.2088674]
[1763129334836,0.10479654,95757.0,95756.0,0.20886419]
[1763129335680,0.10479654,95757.0,95751.0,0.00024543]
[1763129335852,0.10479654,95757.0,95754.0,0.20886827]
[1763129336061,0.10479654,95757.0,95755.0,0.20886572]
[1763129336636,0.10479654,95757.0,95755.0,0.20886614]
[1763129337234,0.10493209,95776.0,95756.0,0.27008641]
[1763129337434,0.10479654,95761.0,95752.0,1.538884]
[1763129338006,0.10479654,95761.0,95751.0,0.00024543]
[1763129338203,0.10479654,95761.0,95743.0,0.20889108]
[1763129338358,0.10479654,95746.0,95744.0,0.0157]
[1763129338556,0.10479654,95746.0,95730.0,0.65043169]
[1763129338557,0.10921,95745.0,95730.0,0.0004]
[1763129338825,0.14936654,95731.0,95730.0,0.0004]
[1763129339030,0.21035654,95731.0,95730.0,0.0004]
[1763129339529,0.21035654,95731.0,95690.0,0.02615041]
[1763129339530,0.68725043,95730.0,95687.0,0.0161]
[1763129339761,0.68725043,95730.0,95681.0,0.00045319]
[1763129339762,0.06099,95708.0,95681.0,0.00045319]
[1763129339978,0.15301654,95682.0,95681.0,0.00045319]
[1763129340194,0.21400654,95682.0,95681.0,0.00045319]
[1763129340408,0.15301654,95682.0,95681.0,0.00045319]
[1763129340839,0.04822,95682.0,95681.0,0.00045319]
[1763129341049,0.04543,95699.0,95681.0,0.02135598]
[1763129341272,0.10479654,95682.0,95681.0,0.00045319]
[1763129341484,0.16488654,95682.0,95681.0,0.00045319]
[1763129343007,0.10679654,95682.0,95681.0,0.00045319]
[1763129343234,0.10579654,95682.0,95681.0,0.00045319]
[1763129344154,0.16688654,95682.0,95681.0,0.00045319]
[1763129344345,0.16688654,95682.0,95660.0,0.00012]
[1763129344346,0.04341874,95669.0,95660.0,0.00012]
[1763129344562,0.20271654,95661.0,95660.0,0.00025565]
[1763129344761,0.10479654,95661.0,95660.0,0.00025565]
[1763129344977,0.04543,95677.0,95660.0,0.00273968]
[1763129345188,0.04543,95677.0,95669.0,0.20905413]
[1763129345408,0.10579654,95682.0,95680.0,0.17802831]
[1763129345621,0.10679654,95682.0,95679.0,0.2090303]
[1763129345843,0.10679654,95682.0,95672.0,0.20904638]
[1763129346050,0.10479654,95682.0,95680.0,0.20902971]
[1763129346254,0.001,95677.0,95671.0,0.323]
[1763129346459,0.001,95677.0,95664.0,0.234475]
[1763129346677,0.001,95677.0,95660.0,0.63459499]
[1763129346678,0.10479654,95667.0,95660.0,0.01070934]
[1763129346893,0.10479654,95667.0,95660.0,0.00025565]
[1763129347513,0.10479654,95667.0,95663.0,0.20906624]
[1763129347719,0.10479654,95667.0,95665.0,0.20906226]
[1763129348309,0.10479654,95667.0,95660.0,0.00025565]
[1763129348650,0.01047965,95666.0,95660.0,0.00025565]
[1763129348871,0.06209,95661.0,95660.0,0.00125565]
[1763129349299,0.10479654,95667.0,95660.0,0.00025565]
[1763129349528,0.10479654,95667.0,95660.0,0.00125565]
[1763129349735,0.10479654,95667.0,95660.0,0.00025565]
[1763129349846,0.001,95666.0,95660.0,0.00025565]
[1763129350254,0.10479654,95667.0,95660.0,0.00025565]
[1763129350255,0.06209,95661.0,95660.0,0.00025565]
[1763129352453,0.36641874,95660.0,95640.0,0.0004]
[1763129352684,0.0095,95640.0,95630.0,0.0004]
[1763129352866,0.06209,95631.0,95630.0,0.00053601]
[1763129353293,0.096,95639.0,95630.0,0.00383999]
[1763129353488,0.096,95639.0,95630.0,0.00053601]
[1763129353719,0.06209,95631.0,95630.0,0.00053601]
[1763129354563,0.0095,95610.0,95606.0,8e-05]
[1763129354763,0.10479654,95607.0,95606.0,0.000534]
[1763129355617,0.10479654,95636.0,95615.0,0.01803]
[1763129355832,0.10479654,95636.0,95626.0,0.20914704]
[1763129356044,0.10479654,95636.0,95635.0,0.20912845]
[1763129356254,0.10479654,95636.0,95620.0,0.62388565]
[1763129356255,0.10202646,95636.0,95632.0,0.209134]
[1763129356484,0.10202646,95636.0,95634.0,0.2091292]
[1763129356699,0.10302646,95636.0,95634.0,0.2091292]
[1763129356903,0.10302646,95636.0,95634.0,0.20913001]
[1763129357356,0.002,95636.0,95634.0,0.20913001]
[1763129357562,0.002,95636.0,95635.0,0.02091284]
[1763129357841,0.002,95636.0,95634.0,0.20913001]
[1763129358053,0.10479654,95635.0,95622.0,0.20915688]
[1763129358259,0.10479654,95635.0,95629.0,0.323]
[1763129358465,0.0095,95630.0,95610.0,0.09014063]
[1763129358678,0.10479654,95618.0,95612.0,0.20917876]
[1763129358887,0.10479654,95618.0,95608.0,0.62388565]
[1763129359097,0.10479654,95618.0,95608.0,0.000454]
[1763129359924,0.10479654,95618.0,95612.0,0.002]
[1763129360333,0.10479654,95618.0,95612.0,0.001]
[1763129360919,0.10479654,95618.0,95616.0,0.20916918]
[1763129361353,0.10479654,95618.0,95608.0,0.62433965]
[1763129361354,0.0095,95610.0,95608.0,0.000454]
[1763129362502,0.0095,95610.0,95608.0,0.20964034]
[1763129363317,0.0095,95630.0,95610.0,0.820322]
[1763129363537,0.10479654,95611.0,95610.0,1.12388565]
[1763129363707,0.10479654,95611.0,95609.0,0.20918429]
[1763129364264,0.10479654,95611.0,95608.0,0.000454]
[1763129364265,0.0095,95610.0,95608.0,0.000454]
[1763129364651,0.0095,95610.0,95609.0,0.00387825]
[1763129365154,0.10479654,95611.0,95609.0,0.16806357]
[1763129365676,0.10479654,95611.0,95609.0,0.1889821]
[1763129365868,0.10479654,95610.0,95609.0,0.02091853]
[1763129366094,0.10479654,95610.0,95609.0,0.001]
[1763129366301,0.0095,95630.0,95608.0,0.02137275]
[1763129366485,0.0095,95630.0,95622.0,0.20915671]
[1763129366784,0.0095,95630.0,95621.0,0.20915855]
[1763129366987,0.0095,95630.0,95617.0,0.20916595]
[1763129367202,0.0095,95630.0,95610.0,0.62388565]
[1763129367203,0.0095,95630.0,95621.0,0.20915862]
[1763129367418,0.0095,95630.0,95611.0,0.422722]
[1763129367617,0.0095,95630.0,95619.0,0.20916203]
[1763129367829,0.0095,95630.0,95615.0,0.323]
[1763129368037,0.04797,95633.0,95630.0,0.20913898]
[1763129368239,0.04797,95633.0,95627.0,0.20914528]
[1763129368449,0.04797,95633.0,95620.0,0.62388565]
[1763129368450,0.04797,95640.0,95620.0,0.62388565]
[1763129368654,0.04797,95640.0,95634.0,0.20913064]
[1763129368872,0.00145047,95646.0,95634.0,0.20913064]
[1763129369079,0.00145047,95646.0,95634.0,0.53213064]
[1763129369719,0.00145047,95646.0,95634.0,0.323]
[1763129369931,0.00145047,95646.0,95635.0,0.53212845]
[1763129370112,0.00145047,95646.0,95644.0,0.20910811]
[1763129370562,0.00145047,95646.0,95634.0,0.20912627]
[1763129370774,0.10479654,95635.0,95634.0,0.488637]
[1763129370990,0.10479654,95635.0,95610.0,0.01045915]
[1763129371186,0.0095,95630.0,95621.0,0.323]
[1763129371391,0.10479654,95635.0,95629.0,0.327999]
[1763129371599,0.10479654,95635.0,95634.0,0.20913064]
[1763129371813,0.10479654,95635.0,95628.0,0.323]
[1763129372034,0.11014,95629.0,95611.0,0.273103]
[1763129372211,0.11014,95629.0,95610.0,0.000454]
[1763129372212,0.10479654,95617.0,95615.0,0.2091722]
[1763129372459,0.10479654,95617.0,95616.0,0.245]
[1763129372666,0.10479654,95617.0,95611.0,0.217462]
[1763129372871,0.10479654,95617.0,95615.0,0.20917079]
[1763129373112,0.10479654,95617.0,95610.0,0.000454]
[1763129373315,0.10479654,95617.0,95615.0,0.20917061]
[1763129373537,0.10479654,95617.0,95615.0,0.21017061]
[1763129373744,0.10479654,95634.0,95620.0,0.01045806]
[1763129373946,0.10479654,95616.0,95615.0,0.001]
[1763129374158,0.10479654,95616.0,95615.0,0.60391]
[1763129374791,0.10479654,95616.0,95610.0,0.20963644]
[1763129374998,0.10479654,95616.0,95610.0,0.000454]
[1763129375205,0.04965,95611.0,95610.0,0.000454]
[1763129375443,0.10479654,95634.0,95610.0,0.000454]
[1763129375444,0.04341874,95626.0,95619.0,0.01803]
[1763129375643,0.0095,95640.0,95621.0,1.22563]
[1763129375857,0.0095,95640.0,95630.0,0.37388056]
[1763129376086,0.0095,95640.0,95592.0,0.0262171]
[1763129376087,0.0095,95640.0,95624.0,0.20915097]
[1763129376309,0.00145047,95646.0,95630.0,0.37388056]
[1763129376519,0.10479654,95631.0,95630.0,0.58301995]
[1763129376799,0.00145047,95646.0,95644.0,0.20910667]
[1763129377012,0.00145047,95646.0,95643.0,0.20910896]
[1763129377234,0.00145047,95646.0,95644.0,0.20910739]
[1763129377439,0.00145047,95646.0,95641.0,0.20911363]
[1763129377640,0.00145047,95646.0,95630.0,0.37388056]
[1763129377641,0.00145047,95646.0,95631.0,0.323]
[1763129377860,0.10479654,95632.0,95631.0,0.323]
[1763129378065,0.10479654,95632.0,95627.0,0.07947125]
[1763129378294,0.0095,95630.0,95627.0,0.07947125]
[1763129378581,0.06049,95628.0,95627.0,0.07947125]
[1763129378837,0.06049,95628.0,95610.0,0.37388056]
[1763129378838,0.06049,95628.0,95610.0,0.58306208]
[1763129379071,0.10479654,95611.0,95610.0,0.37388056]
[1763129379313,0.10479654,95611.0,95609.0,0.20918366]